[Event "Coimbra Queima Fitas Open 2024"]
[Site "Coimbra"]
[Date "2024.04.27"]
[Round "5.2"]
[White "Sousa, Andre Ventura"]
[Black "Ryabukhin, Roman"]
[Result "1-0"]
[ECO "B12"]
[WhiteElo "2426"]
[BlackElo "2047"]
[Annotator "TA"]
[PlyCount "81"]
[EventDate "2024.04.23"]
[EventType "swiss"]
[EventCountry "POR"]
[SourceTitle "playchess.com"]
[Source "ChessBase"]
[SourceQuality "1"]
[TimeControl "5400+30"]

{[%evp 14,81,25,18,22,13,14,0,4,-10,-4,-11,0,-41,-5,-21,0,0,44,31,77,73,76,73,75,72,83,30,50,0,0,0,10,9,48,52,54,56,58,59,46,43,203,221,221,207,220,216,222,195,222,230,495,494,548,521,495,341,970,1293,1358,1617,1606,1491,2660,2407,29987,29988,29988,29989]} 1. e4 {[%emt 0:00:02]} c6 {[%emt 0:00:02]} 2. d4 {[%emt 0:00:05]} d5 {[%emt 0:00:03]} 3. e5 {[%emt 0:00:06]} Bf5 {[%emt 0:00:03]} 4. Nf3 {[%emt 0:00:04]} e6 {[%emt 0:00:07]} 5. Be2 {[%emt 0:00:04]} Ne7 {[%emt 0:00:08]} 6. O-O {[%emt 0:00:32]} Nd7 {[%emt 0:00:07]} 7. c3 {[%emt 0:00:11]} c5 {[%emt 0:00:10]} 8. dxc5 {[%emt 0:00:12]} Nxc5 {[%emt 0:00:11]} 9. Nd4 {[%emt 0:00:05]} a6 {[%emt 0:00:07]} 10. Na3 {[%emt 0:07:52]} Bg6 {[%emt 0:03:18] The position is equal.} 11. h4 {[%emt 0:00:40]} h6 {[%emt 0:11:09]} 12. h5 {[%emt 0:00:05]} Bh7 {[%emt 0:00:03]} 13. b4 {[%emt 0:09:07]} Nd7 {[%emt 0:00:02]} (13... Ne4 {seems wilder.} 14. Qa4+ Qd7 15. Bb5 Nc6) 14. b5 {[%emt 0:00:06]} a5 {[%emt 0:12:31][%cal Oa8c8]} (14... Qc7 $5) 15. c4 {[%emt 0:08:26]} Rc8 {[%emt 0:02:57]} 16. Bb2 {[%emt 0:04:11]} Nb6 {[%emt 0:13:45]} (16... dxc4 $14 17. Nxc4 Nd5) 17. Rc1 $16 {[%emt 0:06:52] White is more active.} Nf5 {[%emt 0:03:55] Dodges c5} 18. Nxf5 {[%emt 0:03:25]} Bxf5 {[%emt 0:00:18]} 19. cxd5 {[%emt 0:00:50]} exd5 {[%emt 0:12:36]} 20. Rxc8 {[%emt 0:18:23]} (20. Nc2 $16) 20... Qxc8 $11 {[%emt 0:00:54]} 21. Nb1 {[%emt 0:09:17]} (21. Qd2 $14 Bb4 22. Qf4) 21... Bc5 {[%emt 0:08:30]} 22. Nd2 {[%emt 0:00:37]} O-O {[%emt 0:02:33]} 23. Nb3 {[%emt 0:01:48][%cal Ob3c5]} Bc2 {[%emt 0:05:52]} 24. Qd2 {[%emt 0:02:02] Strongly threatening Nxc5.} Bxb3 {[%emt 0:03:16]} 25. axb3 {[%emt 0:00:04][%cal Of1c1] Threatens to win with Rc1!} Qf5 {[%emt 0:02:43][%cal Od5d4]} 26. Bd4 {[%emt 0:10:58]} Bxd4 {[%emt 0:05:00]} 27. Qxd4 {[%emt 0:00:02]} Qe6 {[%emt 0:00:33] This costs Black the game.} ({Better is} 27... Nd7 $14) 28. Rd1 $18 {[%emt 0:03:12]} Re8 {[%emt 0:03:30]} 29. Bg4 {[%emt 0:01:55][%cal Be2g4,Bg4f3,Bf3b7][%mdl 32]} f5 {[%emt 0:00:02]} 30. Bf3 {[%emt 0:00:33]} Rd8 {[%emt 0:01:49]} 31. Qc3 {[%emt 0:01:51]} Kh7 {[%emt 0:02:05]} 32. Qxa5 {[%emt 0:01:48]} d4 $2 {[%emt 0:00:02]} (32... Rc8 33. g3 Rc2) 33. Bxb7 {[%emt 0:03:18]} Qxb3 {[%emt 0:00:37]} 34. Bf3 {[%emt 0:00:04]} Qe6 {[%emt 0:00:18]} 35. Bc6 {[%emt 0:01:53]} Qb3 $2 {[%emt 0:01:01]} (35... Rb8 36. Rxd4 Qxe5) 36. Rf1 {[%emt 0:00:43]} Rb8 {[%emt 0:00:34]} 37. Qa7 {[%emt 0:00:07]} Qg8 {[%emt 0:00:01] [#]} 38. e6 $1 {[%emt 0:00:23][%mdl 512]} Nc4 {[%emt 0:02:19]} (38... Rc8 39. e7) 39. e7 {[%emt 0:00:07]} Nd2 {[%emt 0:01:26] [#]} 40. Qxb8 $3 {[%emt 0:00:27][%mdl 512]} Qxb8 {[%emt 0:00:16]} 41. e8=Q {[%emt 0:00:14] Weighted Error Value: White=0.14 (very precise) /Black=0.62.  Mistake:       	White=2     	Black=4      Inaccurate:     	White=2     	Black=3      OK:         	White=14    	Black=7      Best:        	White=2     	Black=2} 1-0

[Event "Coimbra Queima Fitas Open 2024"]
[Site "Coimbra"]
[Date "2024.04.27"]
[Round "5.3"]
[White "Pinsach Gelabert, Alexandre"]
[Black "Veiga, Jose Francisco R P N"]
[Result "0-1"]
[ECO "C45"]
[WhiteElo "2169"]
[BlackElo "2378"]
[Annotator "ChessBase"]
[PlyCount "96"]
[EventDate "2024.04.23"]
[EventType "swiss"]
[EventCountry "POR"]
[SourceTitle "playchess.com"]
[Source "ChessBase"]
[SourceQuality "1"]
[TimeControl "5400+30"]

1. e4 {[%emt 0:00:03]} e5 {[%emt 0:04:13]} 2. Nf3 {[%emt 0:00:09]} Nc6 {[%emt 0:00:03]} 3. d4 {[%emt 0:00:19]} exd4 {[%emt 0:00:05]} 4. Nxd4 {[%emt 0:00:10]} Bc5 {[%emt 0:00:02]} 5. Nxc6 {[%emt 0:00:22]} Qf6 {[%emt 0:00:32]} 6. Qf3 {[%emt 0:00:14]} Qxf3 {[%emt 0:00:29]} 7. gxf3 {[%emt 0:00:03]} dxc6 {[%emt 0:00:10]} 8. Be3 {[%emt 0:00:19]} Bxe3 {[%emt 0:00:21]} 9. fxe3 {[%emt 0:00:05]} Be6 {[%emt 0:00:10]} 10. Rg1 {[%emt 0:01:15]} Ne7 {[%emt 0:01:35]} 11. Nc3 {[%emt 0:01:48]} Rd8 {[%emt 0:01:20]} 12. Ne2 {[%emt 0:01:34]} g6 {[%emt 0:27:04]} 13. Nf4 {[%emt 0:02:06]} Bd7 {[%emt 0:05:30]} 14. b4 {[%emt 0:03:32]} f5 {[%emt 0:01:02]} 15. Bc4 {[%emt 0:10:43]} fxe4 {[%emt 0:01:15]} 16. fxe4 {[%emt 0:00:14]} Nc8 {[%emt 0:01:31]} 17. e5 {[%emt 0:05:54]} Nb6 {[%emt 0:02:20]} 18. Bb3 {[%emt 0:01:39]} Bf5 {[%emt 0:00:37]} 19. e4 {[%emt 0:04:23]} Bxe4 {[%emt 0:03:56]} 20. Ne6 {[%emt 0:00:42]} Rd7 {[%emt 0:10:49]} 21. Nc5 {[%emt 0:06:19]} Re7 {[%emt 0:00:18]} 22. O-O-O {[%emt 0:01:48]} Bd5 {[%emt 0:01:09]} 23. Nxb7 {[%emt 0:03:30]} Rf8 {[%emt 0:00:25]} 24. Rge1 {[%emt 0:05:48]} Rf4 {[%emt 0:17:00]} 25. Na5 {[%emt 0:09:07]} Re6 {[%emt 0:01:56]} 26. c3 {[%emt 0:02:58]} g5 {[%emt 0:03:37]} 27. Rd4 {[%emt 0:03:04]} Rh6 {[%emt 0:02:39]} 28. Re2 {[%emt 0:06:50]} Rh3 {[%emt 0:02:18]} 29. Kd2 {[%emt 0:07:16]} Rxd4+ {[%emt 0:03:05]} 30. cxd4 {[%emt 0:00:02]} Bxb3 {[%emt 0:00:07]} 31. axb3 {[%emt 0:01:15]} Nd5 {[%emt 0:00:14]} 32. Nxc6 {[%emt 0:10:16]} Rxb3 {[%emt 0:00:05]} 33. Nxa7 {[%emt 0:03:45]} Rb2+ {[%emt 0:01:59]} 34. Ke1 {[%emt 0:00:55]} Rxb4 {[%emt 0:00:01]} 35. Rd2 {[%emt 0:02:47]} Kd7 {[%emt 0:00:57]} 36. Kf2 {[%emt 0:00:46]} c6 {[%emt 0:03:29]} 37. Rc2 {[%emt 0:02:47]} Ne7 {[%emt 0:00:12]} 38. Kf3 {[%emt 0:03:07]} Rxd4 {[%emt 0:00:53]} 39. e6+ {[%emt 0:01:19]} Kd6 {[%emt 0:00:14]} 40. Ra2 {[%emt 0:00:45]} Rf4+ {[%emt 0:01:08]} 41. Kg3 {[%emt 0:00:27]} Kxe6 {[%emt 0:00:33]} 42. Re2+ {[%emt 0:00:33]} Kd6 {[%emt 0:00:56]} 43. Rxe7 {[%emt 0:00:15]} Kxe7 {[%emt 0:00:10]} 44. Nxc6+ {[%emt 0:00:01]} Kd6 {[%emt 0:00:12]} 45. Nd8 {[%emt 0:00:33]} Rf8 {[%emt 0:01:34]} 46. Nb7+ {[%emt 0:00:04]} Kd5 {[%emt 0:00:04]} 47. Na5 {[%emt 0:01:19]} Ra8 {[%emt 0:00:34]} 48. Nb7 {[%emt 0:00:15]} Kc6 0-1

[Event "Coimbra Queima Fitas Open 2024"]
[Site "Coimbra"]
[Date "2024.04.27"]
[Round "5.4"]
[White "Serarols Mabras, Bernat"]
[Black "Novais, Carlos Joao Fernande"]
[Result "1/2-1/2"]
[ECO "A05"]
[WhiteElo "2361"]
[BlackElo "2101"]
[Annotator "TA"]
[PlyCount "99"]
[EventDate "2024.04.23"]
[EventType "swiss"]
[EventCountry "POR"]
[SourceTitle "playchess.com"]
[Source "ChessBase"]
[SourceQuality "1"]
[TimeControl "5400+30"]

{[%evp 15,99,14,34,35,29,13,14,15,15,17,12,18,77,75,88,52,87,66,82,74,81,83,72,44,53,60,103,31,36,38,69,0,0,-2,0,0,0,0,0,0,0,-2,0,0,0,0,0,0,0,0,0,0,0,0,4,0,0,0,0,0,0,0,0,0,0,0,0,0,0,0,0,0,0,0,0,0,0,0,0,0,0,-2,0,0,0,-6]} 1. Nf3 {[%emt 0:07:02]} Nf6 {[%emt 0:00:23]} 2. c4 {[%emt 0:00:20]} g6 {[%emt 0:00:58]} 3. d4 {[%emt 0:00:16]} d6 {[%emt 0:00:09]} 4. Bf4 {[%emt 0:00:08]} Nbd7 {[%emt 0:00:20]} 5. Nc3 {[%emt 0:00:10]} Bg7 {[%emt 0:00:06]} 6. e3 {[%emt 0:00:06]} O-O {[%emt 0:00:08]} 7. Be2 {[%emt 0:00:04]} b6 {[%emt 0:00:12]} 8. O-O {[%emt 0:00:10]} Bb7 {[%emt 0:00:06]} 9. Qc2 {[%emt 0:00:01]} Re8 {[%emt 0:00:40]} 10. Rfd1 {[%emt 0:11:47]} Nh5 {[%emt 0:04:12]} 11. Bg5 {[%emt 0:01:21][%cal Bf4g5,Bg5h4,Bh4g3][%mdl 32]} h6 {[%emt 0:00:21]} 12. Bh4 {[%emt 0:00:03]} g5 {[%emt 0:00:09]} 13. Nd2 {[%emt 0:00:16]} Nhf6 {[%emt 0:00:30]} (13... Ndf6 $11 {remains equal.}) 14. Bg3 $16 {[%emt 0:00:08]} e5 {[%emt 0:00:05]} 15. dxe5 {[%emt 0:02:36]} dxe5 {[%emt 0:02:56]} 16. Rac1 {[%emt 0:05:49]} Qe7 {[%emt 0:08:05]} 17. a3 {[%emt 0:07:04][%cal Ba2a3,Ba3b4,Bb4b5][%mdl 32]} Nf8 {[%emt 0:06:46]} 18. b4 {[%emt 0:07:22]} a5 {[%emt 0:07:35]} 19. Qb3 {[%emt 0:04:34]} axb4 {[%emt 0:11:19]} 20. axb4 {[%emt 0:00:23]} Bc6 {[%emt 0:00:07] [#]} 21. c5 {[%emt 0:11:01]} bxc5 $14 {[%emt 0:03:34]} 22. b5 {[%emt 0:01:02]} Bd7 {[%emt 0:01:27]} 23. Na4 {[%emt 0:06:22] White is more active.} (23. Qc2 $14) 23... Be6 $11 {[%emt 0:08:22] The position is equal.} 24. Bc4 {[%emt 0:04:16][%cal Oa4c5]} N6d7 {[%emt 0:00:24]} 25. Bxe6 {[%emt 0:07:00]} Nxe6 {[%emt 0:01:20]} 26. f3 {[%emt 0:01:46]} Kh8 {[%emt 0:03:01]} 27. Qc2 {[%emt 0:02:51]} f5 {[%emt 0:00:40][%cal Oe5e4]} 28. Bf2 {[%emt 0:01:25]} f4 {[%emt 0:01:31]} 29. Ne4 {[%emt 0:01:25]} fxe3 {[%emt 0:00:08]} 30. Bxe3 {[%emt 0:00:06]} Nd4 {[%emt 0:00:03]} 31. Bxd4 {[%emt 0:00:28]} exd4 {[%emt 0:00:05]} 32. Naxc5 {[%emt 0:00:29]} Nxc5 {[%emt 0:00:58]} 33. Qxc5 {[%emt 0:01:02]} Qxc5 {[%emt 0:00:35]} 34. Rxc5 {[%emt 0:00:34]} Re5 {[%emt 0:00:05]} 35. Rxc7 {[%emt 0:02:44]} Rxb5 {[%emt 0:00:23]} 36. Rc2 {[%emt 0:00:39]} Rba5 {[%emt 0:03:45]} 37. g3 {[%emt 0:00:58]} Ra2 {[%emt 0:01:16]} 38. Rcd2 {[%emt 0:01:13]} Kh7 {[%emt 0:01:21]} 39. Nc5 {[%emt 0:01:52]} Bf6 {[%emt 0:05:06]} 40. Ne6 {[%emt 0:01:16]} Rxd2 {[%emt 0:00:14]} 41. Rxd2 {[%emt 0:00:09][%mdl 4096] Endgame. KRB-KRN} Ra4 {[%emt 0:00:09]} 42. Nc5 {[%emt 0:00:46]} Ra3 {[%emt 0:00:38]} 43. Kg2 {[%emt 0:00:27]} Kg6 {[%emt 0:00:09]} 44. Ne4 {[%emt 0:02:43]} Be5 {[%emt 0:01:11]} 45. Rc2 {[%emt 0:00:46]} Ra6 {[%emt 0:02:20]} 46. Nf2 {[%emt 0:00:09]} Kf5 {[%emt 0:03:03]} 47. Kf1 {[%emt 0:02:11]} Ra3 {[%emt 0:01:15]} 48. Kg2 Ra6 {[%emt 0:00:06]} 49. Kf1 {[%emt 0:00:21]} Ra3 {[%emt 0:03:27]} 50. Kg2 {[%emt 0:02:18] Weighted Error Value: White=0.07 (flawless) /Black=0.07 (flawless) .  Mistake:       	White=2     	Black=1      Inaccurate:     	White=2     	Black=3      OK:         	White=20    	Black=12     Best:        	White=1     	Black=2} 1/2-1/2

[Event "Coimbra Queima Fitas Open 2024"]
[Site "Coimbra"]
[Date "2024.04.27"]
[Round "5.5"]
[White "Martins, Bruno Andre Leite"]
[Black "Martins, Bruno Andre Leite"]
[Result "*"]
[WhiteElo "2360"]
[BlackElo "2360"]
[Annotator "RC"]
[PlyCount "38"]
[EventDate "2024.04.23"]
[EventType "swiss"]
[EventCountry "POR"]
[SourceTitle "playchess.com"]
[Source "ChessBase"]
[SourceQuality "1"]
[TimeControl "5400+30"]

1. e4 {[%emt 0:00:01]} e6 {[%emt 0:04:43]} 2. d4 {[%emt 0:00:42]} d5 {[%emt 0:00:02]} 3. Nd2 {[%emt 0:00:13]} c5 {[%emt 0:00:06]} 4. Ngf3 {[%emt 0:01:09]} cxd4 {[%emt 0:00:56]} 5. exd5 {[%emt 0:01:33]} Qxd5 {[%emt 0:00:18]} 6. Bc4 {[%emt 0:00:22]} Qd6 {[%emt 0:00:07]} 7. O-O {[%emt 0:00:23]} Nf6 {[%emt 0:00:09]} 8. Nb3 {[%emt 0:00:28]} Nc6 {[%emt 0:00:03]} 9. Nbxd4 {[%emt 0:00:30]} Nxd4 {[%emt 0:00:09]} 10. Qxd4 {[%emt 0:04:03]} Qxd4 {[%emt 0:00:28]} 11. Nxd4 {[%emt 0:00:02]} Bd7 {[%emt 0:00:11]} 12. Bb3 {[%emt 0:03:41]} Bc5 {[%emt 0:04:52]} 13. Be3 {[%emt 0:04:27]} Rc8 {[%emt 0:01:08]} 14. h3 {[%emt 0:03:32]} O-O {[%emt 0:01:38]} 15. Rfe1 {[%emt 0:03:19]} Rfd8 {[%emt 0:02:16]} 16. Rad1 {[%emt 0:02:54]} h6 {[%emt 0:04:47]} 17. c3 {[%emt 0:07:27]} Kf8 {[%emt 0:02:03]} 18. Nc2 {[%emt 0:02:56]} a5 {[%emt 0:02:02]} 19. a4 {[%emt 0:02:11]} Ne4 {[%emt 0:18:27]} *

[Event "Coimbra Queima Fitas Open 2024"]
[Site "Coimbra"]
[Date "2024.04.27"]
[Round "5.5"]
[White "Simoes, Miguel Caldeira"]
[Black "Martins, Bruno Andre Leite"]
[Result "1/2-1/2"]
[ECO "C07"]
[WhiteElo "2084"]
[BlackElo "2360"]
[Annotator "TA"]
[PlyCount "120"]
[EventDate "2024.04.23"]
[EventType "swiss"]
[EventCountry "POR"]
[SourceTitle "playchess.com"]
[Source "ChessBase"]
[SourceQuality "1"]
[TimeControl "5400+30"]

{[%evp 23,120,7,0,6,0,-3,6,0,7,0,0,0,14,0,7,0,0,0,0,0,0,0,0,0,0,0,0,0,0,0,0,0,0,0,5,0,8,20,65,67,57,69,61,0,0,0,0,0,0,0,0,0,0,0,0,0,0,0,0,0,0,0,0,0,0,0,0,0,0,0,0,0,0,0,0,0,0,0,0,0,0,0,0,0,0,0,0,0,0,0,0,0,0,0,0,0,0,0,0]} 1. e4 {[%emt 0:00:01]} e6 {[%emt 0:04:43]} 2. d4 {[%emt 0:00:42]} d5 {[%emt 0:00:02]} 3. Nd2 {[%emt 0:00:13]} c5 {[%emt 0:00:06]} 4. Ngf3 {[%emt 0:01:09]} cxd4 {[%emt 0:00:56]} 5. exd5 {[%emt 0:01:33]} Qxd5 {[%emt 0:00:18]} 6. Bc4 {[%emt 0:00:22]} Qd6 {[%emt 0:00:07]} 7. O-O {[%emt 0:00:23]} Nf6 {[%emt 0:00:09]} 8. Nb3 {[%emt 0:00:28]} Nc6 {[%emt 0:00:03]} 9. Nbxd4 {[%emt 0:00:30]} Nxd4 {[%emt 0:00:09]} 10. Qxd4 {[%emt 0:04:03]} Qxd4 {[%emt 0:00:28]} 11. Nxd4 {[%emt 0:00:02]} Bd7 {[%emt 0:00:11]} 12. Bb3 {[%emt 0:03:41] C07: French Tarrasch: 3...c5, 4 Ngf3 and 4 exd5 Qxd5.} Bc5 {[%emt 0:04:52]} 13. Be3 {[%emt 0:04:27]} Rc8 {[%emt 0:01:08]} 14. h3 {[%emt 0:03:32]} O-O {[%emt 0:01:38]} 15. Rfe1 {[%emt 0:03:19]} Rfd8 {[%emt 0:02:16]} 16. Rad1 {[%emt 0:02:54]} h6 {[%emt 0:04:47]} 17. c3 {[%emt 0:07:27]} Kf8 {[%emt 0:02:03]} 18. Nc2 {[%emt 0:02:56]} a5 $146 {[%emt 0:02:02]} ({Predecessor:} 18... Ne4 19. Nd4 Be7 20. Bxh6 Nxc3 21. Bxg7+ Kxg7 22. bxc3 Rxc3 {½-½ Matanovic,A-Petrosian,T ZSK International-07 Erevan 1965 (9)}) 19. a4 {[%emt 0:02:11]} Ne4 {[%emt 0:18:27]} 20. Nd4 {[%emt 0:07:17]} e5 {[%emt 0:03:04]} 21. Nf3 {[%emt 0:04:15]} Bxe3 {[%emt 0:09:01]} 22. Rxe3 {[%emt 0:00:37]} Nc5 {[%emt 0:00:02]} 23. Nxe5 {[%emt 0:00:53]} Be8 $1 {[%emt 0:00:55]} 24. Rxd8 {[%emt 0:14:38]} Rxd8 {[%emt 0:00:34]} 25. Bxf7 {[%emt 0:01:01]} Bxf7 {[%emt 0:09:03]} 26. Rf3 $1 {[%emt 0:00:32]} Rd5 {[%emt 0:01:30]} 27. Nxf7 {[%emt 0:08:10]} (27. Rxf7+ $2 {perishes.} Ke8 28. Rxg7 (28. f4 Rxe5 29. Rxg7 Re1+ 30. Kh2 Rb1 $19) 28... Rxe5 $17) 27... Kg8 {[%emt 0:02:55]} 28. c4 {[%emt 0:03:07]} Rd1+ {[%emt 0:00:18]} 29. Kh2 {[%emt 0:00:04]} Nxa4 {[%emt 0:00:36]} 30. Ne5 {[%emt 0:04:13]} Nxb2 {[%emt 0:01:18]} 31. Rb3 {[%emt 0:00:36]} Rd2 {[%emt 0:00:31]} 32. Rxb7 {[%emt 0:00:48]} Rc2 $1 {[%emt 0:03:48]} 33. f4 {[%emt 0:06:17]} (33. Ra7 $14) 33... Nxc4 $11 {[%emt 0:02:38]} 34. Nxc4 {[%emt 0:00:05]} Rxc4 {[%emt 0:00:05]} 35. Ra7 {[%emt 0:00:20]} a4 {[%emt 0:03:14]} 36. Kg3 {[%emt 0:01:29]} Rc3+ {[%emt 0:03:06]} 37. Kg4 {[%emt 0:00:26]} a3 {[%emt 0:00:07]} 38. f5 {[%emt 0:00:31]} Kf8 {[%emt 0:01:40]} 39. f6 {[%emt 0:00:40]} gxf6 {[%emt 0:02:05]} 40. Kf5 {[%emt 0:00:20]} Rg3 {[%emt 0:01:16]} 41. Kxf6 {[%emt 0:01:02]} Ke8 {[%emt 0:00:02]} 42. Kf5 {[%emt 0:00:28]} h5 {[%emt 0:01:06]} 43. Ke4 {[%emt 0:01:10]} h4 {[%emt 0:00:16]} 44. Kd5 {[%emt 0:01:12]} Kd8 {[%emt 0:07:28]} 45. Kc4 {[%emt 0:01:06]} Ke8 {[%emt 0:02:20]} 46. Kd4 {[%emt 0:00:42]} Kf8 {[%emt 0:00:12]} 47. Ke4 {[%emt 0:00:44]} Rc3 {[%emt 0:00:28]} 48. Kf4 {[%emt 0:00:21]} Rg3 {[%emt 0:00:11]} 49. Ke4 {[%emt 0:00:07]} Ke8 {[%emt 0:00:25]} 50. Kd4 {[%emt 0:00:29]} Rb3 {[%emt 0:00:10]} 51. Kc4 {[%emt 0:00:38]} Rg3 {[%emt 0:00:02]} 52. Kd4 {[%emt 0:00:23]} Kd8 {[%emt 0:00:05]} 53. Kc4 {[%emt 0:00:18]} Kc8 {[%emt 0:00:06]} 54. Kb4 {[%emt 0:01:49]} Rxg2 {[%emt 0:00:46]} 55. Rxa3 {[%emt 0:01:04]} Rg3 {[%emt 0:00:08]} 56. Rc3+ {[%emt 0:00:17]} Kd7 {[%emt 0:00:09]} 57. Kc4 $1 {[%emt 0:00:06]} Ke6 {[%emt 0:00:07]} 58. Kd4 {[%emt 0:00:40]} Kf5 {[%emt 0:01:31]} 59. Rxg3 {[%emt 0:00:23]} hxg3 {[%emt 0:00:03]} 60. Ke3 {[%emt 0:00:03]} g2 {[%emt 0:00:10]} (60... Kg5 $5 61. Kf3 $8 Kf5 $11) 1/2-1/2

[Event "Coimbra Queima Fitas Open 2024"]
[Site "Coimbra"]
[Date "2024.04.27"]
[Round "5.6"]
[White "Goncalves, Lucas Jordao"]
[Black "Grimm, Daniel"]
[Result "0-1"]
[ECO "B67"]
[WhiteElo "1983"]
[BlackElo "2296"]
[Annotator "TA"]
[PlyCount "114"]
[EventDate "2024.04.23"]
[EventType "swiss"]
[EventCountry "POR"]
[SourceTitle "playchess.com"]
[Source "ChessBase"]
[SourceQuality "1"]
[TimeControl "5400+30"]

{[%evp 17,114,29,50,13,10,10,10,14,13,-11,-14,-42,-49,-57,-49,-89,-88,-111,-109,-107,-98,-128,-128,-129,-127,-123,-131,-162,-150,-144,-153,-166,-162,-163,-145,-145,-137,-141,-150,-151,-153,-187,-198,-200,-182,-236,-228,-227,-189,-189,-188,-184,-182,-178,-170,-241,-214,-294,-289,-279,-287,-291,-294,-346,-341,-319,-315,-316,-322,-316,-292,-324,-311,-320,-308,-297,-225,-244,-243,-226,-112,-112,-112,-142,-156,-404,-383,-29986,-29987,-29988,-29989,-29989,-29990,-29993,-29994,-29995,-29996,-29996,-29997]} 1. e4 {[%emt 0:02:46]} c5 {[%emt 0:00:40]} 2. Nf3 {[%emt 0:00:07]} d6 {[%emt 0:00:13]} 3. d4 {[%emt 0:00:06]} cxd4 {[%emt 0:00:12]} 4. Nxd4 {[%emt 0:00:08]} Nf6 {[%emt 0:00:23]} 5. Nc3 {[%emt 0:00:08]} a6 {[%emt 0:00:25]} 6. Bg5 {[%emt 0:02:35]} e6 {[%emt 0:00:50]} 7. Qd2 {[%emt 0:01:15]} Bd7 {[%emt 0:04:40]} 8. O-O-O {[%emt 0:04:10]} Nc6 {[%emt 0:02:28]} 9. f4 {[%emt 0:01:55]} Qb6 {[%emt 0:05:33]} 10. g3 {[%emt 0:16:09]} Nxd4 {[%emt 0:10:39]} 11. Qxd4 {[%emt 0:00:33]} Qxd4 {[%emt 0:00:07]} 12. Rxd4 {[%emt 0:00:05] The position is equal.} Bc6 {[%emt 0:00:16]} 13. Bxf6 {[%emt 0:04:47]} gxf6 {[%emt 0:00:08]} 14. Bh3 {[%emt 0:00:04]} h5 {[%emt 0:02:42][%cal Of6f5,Bh7h5,Bh5h4][%mdl 32]} 15. f5 {[%emt 0:07:25]} Ke7 {[%emt 0:03:39]} 16. Rhd1 {[%emt 0:01:19] [#]} h4 $1 {[%emt 0:13:13] Threatens to win with ...hxg3.} 17. g4 {[%emt 0:17:36]} Bh6+ {[%emt 0:00:52]} 18. Kb1 {[%emt 0:00:04]} Bf4 {[%emt 0:01:07] A strong pair of Bishops.} 19. Nd5+ {[%emt 0:15:50]} exd5 {[%emt 0:05:10]} 20. exd5 {[%emt 0:00:07]} Bxh2 {[%emt 0:14:00]} (20... Be5 21. dxc6 Bxd4 (21... Bxh2 $2 22. cxb7 Rab8 23. Rb4 $18) 22. cxb7 $15) 21. dxc6 {[%emt 0:00:15]} bxc6 {[%emt 0:00:13]} 22. c4 {[%emt 0:00:11]} Be5 {[%emt 0:00:29]} 23. R4d3 {[%emt 0:00:15]} Rhb8 {[%emt 0:01:44]} 24. b3 {[%emt 0:01:03]} a5 {[%emt 0:00:18]} 25. a3 {[%emt 0:00:15]} Rg8 {[%emt 0:03:17]} 26. Kc2 {[%emt 0:00:50]} Rab8 {[%emt 0:02:11]} 27. Rb1 {[%emt 0:07:55]} Kd7 {[%emt 0:01:41]} 28. Rdd1 {[%emt 0:02:35]} Kc7 {[%emt 0:00:29]} 29. Rd3 {[%emt 0:03:35]} Bg3 {[%emt 0:00:54]} 30. b4 {[%emt 0:03:50]} axb4 {[%emt 0:02:53]} 31. axb4 {[%emt 0:01:22]} (31. Rxb4 {was worth a try.} Ra8 32. Rb1) 31... Ra8 $19 {[%emt 0:01:02]} 32. b5 {[%emt 0:01:06]} Ra2+ {[%emt 0:01:14]} 33. Rb2 {[%emt 0:02:05]} Rxb2+ {[%emt 0:02:17]} 34. Kxb2 {[%emt 0:00:04]} cxb5 {[%emt 0:00:29]} 35. cxb5 {[%emt 0:00:05][%mdl 4096] Endgame. KRB-KRB} Kb6 {[%emt 0:00:22]} 36. Ra3 {[%emt 0:00:36]} (36. Rb3 {was necessary.}) 36... Kxb5 {[%emt 0:03:36]} 37. Ra7 {[%emt 0:00:06]} Kc4 {[%emt 0:08:13]} 38. Rxf7 {[%emt 0:00:11]} Be5+ {[%emt 0:01:51]} 39. Kc2 {[%emt 0:01:22]} Kd4 {[%emt 0:00:43] aiming for ...Rc8+.} 40. Rh7 {[%emt 0:02:15]} Rc8+ {[%emt 0:00:45]} 41. Kd2 {[%emt 0:01:25]} Bf4+ {[%emt 0:00:42]} 42. Ke2 {[%emt 0:00:13]} Rc2+ {[%emt 0:01:17]} 43. Kf3 {[%emt 0:01:26] [#]} Bg5 {[%emt 0:01:00]} (43... Bg3 44. g5 $11) 44. Bf1 {[%emt 0:01:10]} Rc3+ {[%emt 0:02:15]} 45. Kf2 {[%emt 0:00:06]} Rg3 {[%emt 0:00:59]} 46. Ra7 {[%emt 0:00:13]} Ke5 {[%emt 0:01:47]} (46... Rxg4 $2 47. Ra4+ Ke5 48. Rxg4 $18) 47. Ra5+ {[%emt 0:00:54]} d5 {[%emt 0:01:34] White must now prevent ...Be3+.} 48. Bc4 {[%emt 0:00:11]} Rxg4 {[%emt 0:01:23]} (48... Be3+ $19 49. Ke2 h3 (49... Rxg4 50. Bxd5 Rd4 51. Kxe3 $11) 50. Bxd5 Bg1 51. Bh1+ Kf4) 49. Bxd5 $17 {[%emt 0:00:07] And now Bf3+ would win.} Rd4 {[%emt 0:00:26] ( -> ...Rd2+)} (49... Kxf5 $2 {too greedy.} 50. Bf3+ Ke6 51. Bxg4+ $18) 50. Bg2+ {[%emt 0:00:49]} Kf4 {[%emt 0:00:00]} 51. Bh3 $2 {[%emt 0:00:12] Loses the game.} (51. Ra3 $17) 51... Rd2+ $19 {[%emt 0:00:27]} 52. Kg1 $2 {[%emt 0:00:12]} (52. Ke1 $19 Rd3 53. Bg2) 52... Kf3 {[%emt 0:00:51] Black mates.} 53. Ra3+ {[%emt 0:01:17]} Be3+ {[%emt 0:00:10]} 54. Kh1 {[%emt 0:00:04]} Re2 {[%emt 0:01:07]} 55. Ra4 {[%emt 0:02:05]} Re1+ {[%emt 0:00:26]} (55... Kg3 56. Rg4+ Kf3 (56... Kxh3 57. Rg3+ hxg3 $11) 57. Bg2+ Kxg4 58. Bf3+ Kxf5 59. Bxe2 $17) 56. Kh2 {[%emt 0:00:29]} Bg1+ {[%emt 0:00:22]} 57. Kh1 {[%emt 0:00:04]} Bf2+ {[%emt 0:00:08] Weighted Error Value: White=0.35/Black=0.08 (flawless) .  Loses game:     	White=1     	---        Mistake:       	White=3     	Black=1      Inaccurate:     	White=4     	---        OK:         	White=11    	Black=20     Best:        	White=5     	Black=6      Strong:       	---       	Black=1} 0-1